bitfinex-derivatives/quotes_BTCF0:USTF0_20250324
["timestamp","ask_amount","ask_price","bid_price","bid_amount"]
[1742827934855,0.54835009,88089.0,88088.0,0.4614]
[1742827935151,0.54935009,88089.0,88088.0,0.4614]
[1742827935356,0.95765009,88089.0,88088.0,0.0006]
[1742827935751,0.1135195,88080.0,88079.0,0.00045414]
[1742827935953,0.2350395,88080.0,88079.0,0.10045414]
[1742827936367,0.34857329,88080.0,88079.0,0.10045414]
[1742827936663,0.73047329,88080.0,88079.0,0.10045414]
[1742827937050,0.73047329,88080.0,88079.0,0.10345414]
[1742827937661,0.41815379,88080.0,88079.0,0.22697494]
[1742827937851,0.41015329,88080.0,88079.0,0.11345414]
[1742827938365,0.40515329,88080.0,88079.0,0.11345414]
[1742827939267,0.40515329,88080.0,88079.0,0.11945414]
[1742827939665,0.10853379,88080.0,88079.0,0.11945414]
[1742827939962,0.22205329,88080.0,88079.0,0.11945414]
[1742827941061,0.22205329,88080.0,88079.0,0.12009414]
[1742827941361,0.2230933,88080.0,88079.0,0.12009414]
[1742827942062,0.1095738,88080.0,88079.0,0.12009414]
[1742827942269,0.00104001,88080.0,88079.0,0.23361494]
[1742827942570,0.113513,88085.0,88084.0,0.1135133]
[1742827942866,0.114513,88085.0,88084.0,0.0306]
[1742827943065,0.22804679,88085.0,88084.0,0.0306]
[1742827943572,0.22804679,88085.0,88084.0,0.2284]
[1742827943759,0.22804679,88085.0,88084.0,0.2405179]
[1742827944162,0.11453379,88085.0,88084.0,0.2435179]
[1742827944361,0.001,88085.0,88084.0,0.3570322]
[1742827944971,0.1135085,88089.0,88085.0,0.1135118]
[1742827945167,0.001,88089.0,88086.0,0.1135112]
[1742827945468,0.001,88089.0,88087.0,0.1869]
[1742827945769,0.001,88089.0,88087.0,0.2475]
[1742827945967,0.11352735,88088.0,88087.0,0.2475]
[1742827946265,0.11460735,88088.0,88087.0,0.3610105]
[1742827946459,0.00108,88088.0,88087.0,0.3610105]
[1742827946659,0.21479249,88093.0,88089.0,0.1135073]
[1742827946869,0.1135043,88092.0,88090.0,0.1869]
[1742827947172,0.001,88092.0,88090.0,0.3510061]
[1742827947761,0.001,88092.0,88091.0,0.1855]
[1742827948070,0.001,88092.0,88091.0,0.5342853]
[1742827948270,0.001,88092.0,88091.0,0.42078]
[1742827948468,0.113504,88092.0,88091.0,0.42078]
[1742827948767,0.22802233,88092.0,88091.0,0.23618]
[1742827948970,0.60392233,88092.0,88091.0,0.23618]
[1742827950267,0.60392233,88092.0,88091.0,0.03068]
[1742827950569,0.60392233,88092.0,88091.0,0.032]
[1742827953678,1.01222233,88092.0,88091.0,0.002]
[1742827954176,0.1135195,88080.0,88079.0,0.00045414]
[1742827954478,1.0050995,88080.0,88079.0,0.09045414]
[1742827954670,1.01725093,88080.0,88079.0,0.09045414]
[1742827954872,1.13076926,88080.0,88079.0,0.09045414]
[1742827955068,1.51956926,88080.0,88079.0,0.09045414]
[1742827955276,1.51956926,88080.0,88079.0,0.00045414]
[1742827957367,1.66956926,88080.0,88079.0,0.00045414]
[1742827957768,1.51956926,88080.0,88079.0,0.00045414]
[1742827958475,1.51956926,88080.0,88079.0,4e-08]
[1742827959481,1.57476404,88080.0,88079.0,4e-08]
[1742827959982,1.72476404,88080.0,88079.0,4e-08]
[1742827961284,1.72576404,88080.0,88079.0,4e-08]
[1742827963270,0.1135401,88064.0,88045.0,0.00170354]
[1742827963475,0.95766011,88064.0,88046.0,0.3732]
[1742827963679,0.83618011,88064.0,88046.0,0.3732]
[1742827963884,0.95766011,88064.0,88046.0,0.3732]
[1742827964078,1.4476939,88064.0,88046.0,0.3732]
[1742827964585,1.4476939,88064.0,88063.0,0.00245422]
[1742827965386,0.1135594,88049.0,88048.0,0.1834]
[1742827965583,0.47539941,88049.0,88048.0,0.81004]
[1742827965988,0.58895383,88049.0,88048.0,0.81004]
[1742827966886,0.11459443,88049.0,88048.0,0.9236007]
[1742827967484,0.22815383,88049.0,88048.0,0.81004]
[1742827968680,0.22815383,88049.0,88048.0,0.9236007]
[1742827970294,0.22815383,88049.0,88048.0,0.81004]
[1742827970495,0.41185383,88049.0,88048.0,0.78004]
[1742827971787,0.41185383,88049.0,88048.0,0.56004]
[1742827971990,0.60605383,88049.0,88048.0,0.56004]
[1742827972593,0.60705383,88049.0,88048.0,0.56004]
[1742827974188,0.61930168,88049.0,88048.0,0.00064]
[1742827974493,0.1135607,88048.0,88047.0,0.0004543]
[1742827974692,0.1145607,88048.0,88047.0,0.0004543]
[1742827974993,0.4976607,88048.0,88047.0,0.0004543]
[1742827975188,0.4976607,88048.0,88034.0,0.5735]
[1742827975189,0.1135775,88035.0,88034.0,0.1908]
[1742827975398,0.4743775,88035.0,88034.0,0.2314]
[1742827975692,0.4753775,88035.0,88034.0,0.2314]
[1742827975881,0.77975255,88035.0,88034.0,0.23204]
[1742827976085,0.77975255,88035.0,88034.0,0.23144]
[1742827976486,0.97205255,88035.0,88034.0,0.23144]
[1742827976884,0.77975255,88035.0,88034.0,0.23144]
[1742827977183,0.58895255,88035.0,88034.0,0.23144]
[1742827977393,0.58895255,88035.0,88034.0,0.3450188]
[1742827977796,0.58895255,88035.0,88034.0,0.5363188]
[1742827977991,0.11457505,88035.0,88034.0,0.5363188]
[1742827978388,0.11557505,88035.0,88034.0,0.5363188]
[1742827978900,0.22915255,88035.0,88034.0,0.5363188]
[1742827979092,0.22815255,88035.0,88034.0,0.5363188]
[1742827979584,0.11457505,88035.0,88034.0,0.5363188]
[1742827979790,0.001,88035.0,88034.0,0.5463188]
[1742827980298,0.10154434,88038.0,88037.0,0.1135749]
[1742827980599,0.10154434,88038.0,88037.0,0.2756149]
[1742827980800,0.10254434,88038.0,88037.0,0.6580149]
[1742827981099,0.10154434,88038.0,88037.0,0.6580149]
[1742827981399,0.10254434,88038.0,88037.0,0.6580149]
[1742827982097,0.36454057,88050.0,88037.0,0.6580149]
[1742827982098,0.16924057,88050.0,88037.0,0.6580149]
[1742827982295,0.16992057,88050.0,88049.0,0.1135594]
[1742827982498,0.17060057,88050.0,88049.0,0.2555994]
[1742827982799,0.00068,88050.0,88049.0,0.8357994]
[1742827983096,0.13548598,88051.0,88050.0,0.1135582]
[1742827983297,0.13548598,88051.0,88049.0,0.72224]
[1742827983298,0.1135582,88050.0,88049.0,0.69164]
[1742827983503,0.22781067,88050.0,88049.0,0.71224]
[1742827983801,0.22781067,88050.0,88049.0,0.8257994]
[1742827983802,0.00068,88050.0,88049.0,0.8257994]
[1742827984200,0.0001703,88059.0,88050.0,0.1135582]
[1742827984393,0.16992057,88058.0,88057.0,0.1135491]
[1742827984598,0.0001703,88059.0,88058.0,0.1135478]
[1742827984795,0.20320199,88064.0,88063.0,0.1135414]
[1742827985100,0.20320199,88064.0,88063.0,0.1235414]
[1742827985406,0.1135202,88080.0,88071.0,0.1135311]
[1742827985600,0.0004,88088.0,88075.0,0.0567623]
[1742827985805,0.0004,88088.0,88075.0,0.01]
[1742827985806,0.1946,88087.0,88075.0,0.01]
[1742827986102,0.66895442,88087.0,88075.0,0.123525]
[1742827986400,0.47435442,88087.0,88075.0,0.03213672]
[1742827986702,0.1135179,88082.0,88075.0,0.08889962]
[1742827986896,0.1135179,88082.0,88076.0,0.1135241]
[1742827987103,0.1135179,88082.0,88077.0,0.113523]
[1742827987301,0.1135179,88082.0,88078.0,0.1135213]
[1742827987498,0.1135179,88082.0,88079.0,0.12144]
[1742827987695,0.0567566,88085.0,88079.0,0.14144]
[1742827988002,0.3608,88087.0,88086.0,0.1135117]
[1742827988506,0.0004,88088.0,88087.0,0.1135105]
[1742827988691,0.0004,88088.0,88087.0,0.6102105]
[1742827988897,0.1139092,88088.0,88087.0,0.4967]
[1742827989092,0.22743977,88088.0,88087.0,0.5067]
[1742827989302,0.11393057,88088.0,88087.0,0.5067]
[1742827989603,0.11393057,88088.0,88087.0,0.51842345]
[1742827989801,0.11793057,88088.0,88087.0,0.63193395]
[1742827990010,0.11869057,88088.0,88087.0,0.63269395]
[1742827990201,0.11869057,88088.0,88087.0,0.51918345]
[1742827990905,0.23219977,88088.0,88087.0,0.51918345]
[1742827991209,0.23519977,88088.0,88087.0,0.50746]
[1742827991407,0.41499977,88088.0,88087.0,0.50746]
[1742827992109,0.41499977,88088.0,88087.0,0.6209705]
[1742827992110,0.30149057,88088.0,88087.0,0.6209705]
[1742827992503,0.41499977,88088.0,88087.0,0.50746]
[1742827993400,0.60239977,88088.0,88087.0,0.01076]
[1742827993610,0.1135233,88077.0,88076.0,0.00837078]
[1742827993816,0.1142033,88077.0,88076.0,0.13212]
[1742827994400,0.62192678,88077.0,88076.0,0.13212]
[1742827994610,0.50840348,88077.0,88076.0,0.25422996]
[1742827994918,0.00068,88077.0,88076.0,0.25422996]
[1742827995108,0.3099167,88083.0,88080.0,0.1702783]
[1742827995420,0.3113169,88082.0,88081.0,0.1979]
[1742827995619,0.3113169,88082.0,88081.0,0.4041]
[1742827996311,0.3119969,88082.0,88081.0,0.4041]
[1742827996505,0.00068,88082.0,88081.0,0.5183782]
[1742827996907,0.1877,88082.0,88081.0,0.4041]
[1742827997214,0.3012169,88082.0,88081.0,0.4041]
[1742827998317,0.3032169,88082.0,88081.0,0.52546]
[1742827999703,0.41874811,88082.0,88081.0,0.01]
[1742827999905,0.61114811,88082.0,88081.0,0.01]
[1742828000905,0.61178811,88082.0,88081.0,0.01]
[1742828002109,0.61178811,88082.0,88081.0,0.01076]
[1742828002909,0.61178811,88082.0,88081.0,0.01]
[1742828003913,0.1135272,88074.0,88073.0,0.0001703]
[1742828004112,0.4750072,88074.0,88073.0,0.0108503]
[1742828004309,1.0277072,88074.0,88073.0,0.0101703]
[1742828004614,1.14124873,88074.0,88073.0,0.0101703]
[1742828005606,1.14124873,88074.0,88073.0,0.0111703]
[1742828006114,1.02772153,88074.0,88073.0,0.0111703]
[1742828006419,0.056753,88091.0,88073.0,0.0111703]
[1742828006420,0.417552,88093.0,88087.0,0.1135105]
[1742828006613,0.00132,88088.0,88087.0,0.00088]
[1742828006811,0.00132,88088.0,88087.0,0.1252705]
[1742828007012,0.00132,88088.0,88087.0,0.01088]
[1742828007320,0.11486153,88088.0,88087.0,0.38668]
[1742828007517,0.00132,88088.0,88087.0,0.5001905]
[1742828007711,0.18052,88088.0,88087.0,0.38668]
[1742828007918,0.40755268,88088.0,88087.0,0.38668]
[1742828008122,0.40755268,88088.0,88087.0,0.01088]
[1742828008320,0.59105268,88088.0,88087.0,0.01088]
[1742828009118,0.59105268,88088.0,88084.0,0.12132]
[1742828009119,0.1135259,88075.0,88074.0,0.12128]
[1742828009312,0.11440591,88075.0,88074.0,0.03088]
[1742828009517,0.11440591,88075.0,88074.0,0.03]
[1742828009714,0.48360591,88075.0,88074.0,0.03]
[1742828009916,0.59712939,88075.0,88074.0,0.03]
[1742828010918,0.59812939,88075.0,88074.0,0.03]
[1742828011120,0.48460349,88075.0,88074.0,0.03]
[1742828011319,0.37108001,88075.0,88074.0,0.03]
[1742828011520,0.37108001,88075.0,88074.0,0.21598]
[1742828012021,0.48460591,88075.0,88074.0,0.21598]
[1742828012224,0.59814615,88075.0,88074.0,0.03088]
[1742828012422,0.59814615,88075.0,88074.0,0.03]
[1742828013017,0.1135272,88074.0,88044.0,0.0567826]
[1742828013324,0.113544,88061.0,88060.0,0.02]
[1742828013518,0.114464,88061.0,88060.0,0.02096]
[1742828014026,0.00092,88061.0,88060.0,0.02096]
[1742828014322,0.505864,88061.0,88060.0,0.02096]
[1742828014930,0.505864,88061.0,88060.0,0.03301031]
[1742828015332,0.505864,88061.0,88060.0,0.50335561]
[1742828015532,0.39232,88061.0,88060.0,0.50335561]
[1742828015924,0.505864,88061.0,88060.0,0.38981031]
[1742828016124,0.505864,88061.0,88060.0,0.39849439]
[1742828016629,0.505864,88061.0,88060.0,0.40149439]
[1742828017027,0.00092,88061.0,88060.0,0.51503969]
[1742828017227,0.3608,88079.0,88068.0,0.113535]
[1742828017434,0.3652,88076.0,88068.0,0.265975]
[1742828017632,0.00141031,88069.0,88068.0,0.265975]
[1742828017817,0.0001703,88069.0,88068.0,0.28081413]
[1742828018019,0.0001703,88069.0,88068.0,0.83781413]
[1742828018233,0.3608,88081.0,88073.0,0.0567641]
[1742828018523,0.1805,88080.0,88078.0,0.2270424]
[1742828018831,0.36636,88080.0,88079.0,0.6125608]
[1742828019130,0.36636,88080.0,88079.0,0.6337208]
[1742828019628,0.59341329,88080.0,88079.0,0.53215247]
[1742828019830,0.59341329,88080.0,88079.0,0.5202]
[1742828020132,0.59341329,88080.0,88079.0,0.1424]
[1742828020332,0.6052176,88080.0,88079.0,0.1424]
[1742828020523,0.9660176,88080.0,88079.0,0.1424]
[1742828020718,0.6052176,88080.0,88079.0,0.1424]
[1742828020919,0.6052176,88080.0,88079.0,0.26786379]
[1742828020920,0.36636,88080.0,88079.0,0.26786379]
[1742828021235,0.00416,88080.0,88079.0,0.26786379]
[1742828021433,0.003,88080.0,88079.0,0.27786379]
[1742828021735,0.003,88080.0,88079.0,0.29253058]
[1742828021931,0.003,88080.0,88079.0,0.65883058]
[1742828023531,0.003,88080.0,88079.0,0.64416379]
[1742828023938,0.003,88080.0,88079.0,1.00496379]
[1742828025927,0.0005703,88088.0,88087.0,0.1135105]
[1742828026132,0.0017303,88088.0,88087.0,0.7366705]
[1742828026726,0.0017303,88088.0,88087.0,1.1245705]
[1742828027631,0.0047303,88088.0,88087.0,1.1245705]
[1742828027838,0.0077303,88088.0,88087.0,1.1245705]
[1742828029440,0.0077303,88088.0,88087.0,1.01106]
[1742828029824,0.3985303,88088.0,88087.0,1.01106]
[1742828030026,0.3985303,88088.0,88087.0,1.1245705]
[1742828031334,0.3985303,88088.0,88087.0,1.01106]
[1742828031733,0.3985303,88088.0,88087.0,1.1245705]
[1742828032333,0.3985303,88088.0,88087.0,1.01106]
[1742828032833,0.3985303,88088.0,88087.0,1.1245705]
[1742828033034,0.3985303,88088.0,88087.0,1.0033705]
[1742828033236,0.3985303,88088.0,88087.0,1.1245305]
[1742828033934,0.3985303,88088.0,88087.0,1.01102]
[1742828034331,0.5120395,88088.0,88087.0,1.01102]
[1742828034540,0.5120395,88088.0,88087.0,0.62312]
[1742828034942,0.3985303,88088.0,88087.0,0.7366305]
[1742828035644,0.2028303,88088.0,88087.0,1.1092305]
[1742828036540,0.2028303,88088.0,88087.0,0.81412]
[1742828036941,0.2028303,88088.0,88087.0,0.62312]
[1742828037848,0.3943303,88088.0,88087.0,0.7366305]
[1742828038253,0.3943303,88088.0,88087.0,1.1174305]
[1742828038641,0.0073303,88088.0,88087.0,1.1174305]
[1742828038845,0.0567316,88124.0,88103.0,0.1134898]
[1742828039045,0.4083,88126.0,88103.0,0.1134898]
[1742828039046,0.1811,88110.0,88109.0,0.1134821]
[1742828039239,0.1811,88110.0,88109.0,0.2150021]
[1742828039944,0.1811,88110.0,88109.0,0.5835021]
[1742828040241,0.1811,88110.0,88109.0,0.5935021]
[1742828040744,0.1811,88110.0,88109.0,0.60818501]
[1742828042550,0.1811,88110.0,88109.0,0.6168174]
[1742828042844,0.1811,88110.0,88109.0,0.62867017]
[1742828043060,0.2945808,88110.0,88109.0,0.25312516]
[1742828043249,0.2945808,88110.0,88109.0,0.25412516]
[1742828043450,0.6842808,88110.0,88109.0,0.25412516]
[1742828043754,0.6842808,88110.0,88109.0,0.23227239]
[1742828046345,0.79777593,88110.0,88109.0,0.22364]
[1742828047049,0.68429513,88110.0,88109.0,0.22364]
[1742828047252,0.5708,88110.0,88109.0,0.23233572]
[1742828047553,0.6842808,88110.0,88109.0,0.23233572]
[1742828048147,0.79777593,88110.0,88109.0,0.22364]
[1742828048454,1.15857593,88110.0,88109.0,0.101]
[1742828048851,1.15857593,88110.0,88109.0,0.001]
[1742828049959,0.1134911,88102.0,88101.0,0.0001703]
[1742828050148,0.1134911,88102.0,88101.0,0.0116503]
[1742828050343,0.4905911,88102.0,88101.0,0.0116503]
[1742828050751,0.60409654,88102.0,88101.0,0.0116503]
[1742828051652,0.60409654,88102.0,88101.0,0.0136503]
[1742828052157,0.60409654,88102.0,88101.0,0.0166503]
[1742828053953,0.49060544,88102.0,88101.0,0.0166503]
[1742828054458,0.3771,88102.0,88101.0,0.26309267]
[1742828054849,0.3771,88102.0,88101.0,0.64309267]
[1742828055360,0.3771,88102.0,88101.0,0.64209267]
[1742828055560,0.3771,88102.0,88101.0,0.64309267]
[1742828056056,0.3771,88102.0,88101.0,0.64109267]
[1742828056247,0.3771,88102.0,88101.0,0.64409267]
[1742828056453,0.13551318,88106.0,88105.0,0.1134873]
[1742828056654,0.13551318,88106.0,88105.0,0.2550473]
[1742828056848,0.13551318,88106.0,88105.0,0.50616]
[1742828057158,0.1134851,88107.0,88105.0,0.50616]
[1742828057359,0.3792,88106.0,88105.0,0.51616]
[1742828057554,0.3792,88106.0,88105.0,0.6296473]
[1742828058061,0.3792,88106.0,88105.0,0.6306473]
[1742828058452,0.3792,88106.0,88105.0,0.51716]
[1742828058655,0.3792,88106.0,88105.0,0.6306473]
[1742828058953,0.5419,88110.0,88108.0,0.1134826]
[1742828059152,0.5419,88110.0,88109.0,0.48564]
[1742828059465,0.5419,88110.0,88109.0,0.4972]
[1742828059761,0.6553808,88110.0,88109.0,0.1326]
[1742828059958,0.76887593,88110.0,88109.0,0.01156]
[1742828060153,0.76887593,88110.0,88109.0,0.1326]
[1742828060154,0.96677593,88110.0,88109.0,0.1326]
[1742828060354,0.96677593,88110.0,88109.0,0.01156]
[1742828060556,0.96677593,88110.0,88109.0,0.00156]
[1742828060755,0.1134821,88109.0,88108.0,0.001]
[1742828061064,0.1134821,88109.0,88105.0,0.001]
[1742828061065,0.113486,88106.0,88105.0,0.001]
[1742828061564,0.311386,88106.0,88105.0,0.001]
[1742828062164,0.42488629,88106.0,88105.0,0.001]
[1742828062659,0.1134911,88102.0,88101.0,0.0001703]
[1742828062865,0.1134911,88102.0,88101.0,0.0016903]
[1742828063067,0.3083911,88102.0,88101.0,0.0016903]
[1742828063562,0.42189139,88102.0,88101.0,0.0016903]
[1742828064060,0.42189139,88102.0,88101.0,0.0026903]
[1742828064464,0.78269139,88102.0,88101.0,0.0026903]
[1742828064665,0.78269139,88102.0,88095.0,0.00645081]
[1742828064666,0.1134989,88096.0,88095.0,0.00645081]
[1742828064852,0.1135053,88091.0,88086.0,0.01162783]
[1742828065052,0.1135143,88084.0,88076.0,0.40719581]
[1742828065256,0.1141543,88084.0,88083.0,0.21447717]
[1742828066059,0.22768294,88084.0,88083.0,0.21447717]
[1742828066361,0.22468294,88084.0,88083.0,0.21447717]
[1742828066557,0.23662437,88084.0,88083.0,0.21447717]
[1742828066762,0.23662437,88084.0,88083.0,0.21847717]
[1742828066958,0.23662437,88084.0,88083.0,0.22047717]
[1742828067560,0.23662437,88084.0,88083.0,0.21947717]
[1742828067870,0.24507278,88084.0,88083.0,0.20947717]
[1742828068160,0.42987278,88084.0,88083.0,0.20947717]
[1742828068364,0.42987278,88084.0,88083.0,0.06634977]
[1742828068567,0.1135308,88080.0,88078.0,0.27172957]
[1742828068765,0.4743308,88080.0,88079.0,0.00105414]
[1742828069066,0.47521081,88080.0,88079.0,0.00105414]
[1742828069256,0.58873945,88080.0,88079.0,0.38465414]
[1742828069453,0.77813945,88080.0,88079.0,0.38465414]
[1742828069852,0.77813945,88080.0,88079.0,0.49818624]
[1742828070056,0.66460865,88080.0,88079.0,0.49818624]
[1742828070260,0.55108001,88080.0,88079.0,0.63918624]
[1742828070466,0.55108001,88080.0,88079.0,0.64218624]
[1742828070973,0.19028001,88080.0,88079.0,0.64218624]
[1742828071161,0.00088001,88080.0,88079.0,0.65218624]
[1742828074468,0.00088001,88080.0,88079.0,0.53865414]
[1742828074772,0.00088001,88080.0,88079.0,0.41765414]
[1742828074976,0.00088001,88080.0,88079.0,0.02405414]
[1742828074977,0.2279446,88080.0,88079.0,0.02405414]
[1742828075271,0.2279446,88080.0,88079.0,0.02345414]
[1742828075673,0.2279446,88080.0,88079.0,0.02405414]
[1742828075871,0.4133446,88080.0,88079.0,0.00405414]
[1742828077472,0.4133446,88080.0,88079.0,0.00345414]
[1742828077869,0.5974446,88080.0,88079.0,0.00345414]
[1742828081271,0.65263621,88080.0,88079.0,0.00345414]
[1742828082782,1.06093621,88080.0,88079.0,0.00345414]
[1742828085672,1.0057446,88080.0,88079.0,0.00345414]
[1742828085872,1.1267046,88080.0,88079.0,0.00345414]
[1742828090883,1.3304513,88080.0,88079.0,0.00345414]
[1742828091381,1.4844513,88080.0,88079.0,0.00045414]
[1742828093785,1.3344513,88080.0,88079.0,0.00045414]
[1742828095475,1.4833777,88080.0,88079.0,0.00045414]
[1742828097781,1.3333777,88080.0,88079.0,0.00045414]
[1742828099284,1.50482611,88080.0,88079.0,0.00045414]
[1742828099489,1.50482611,88080.0,88079.0,6.774e-05]
[1742828099693,1.38386611,88080.0,88079.0,6.774e-05]
[1742828099886,1.50478611,88080.0,88079.0,6.774e-05]
[1742828100094,0.79146611,88080.0,88079.0,6.774e-05]
[1742828100277,0.60606611,88080.0,88079.0,0.00094774]
[1742828100598,0.60606611,88080.0,88079.0,6.774e-05]
[1742828101583,0.96226611,88080.0,88079.0,6.774e-05]
[1742828104195,0.98700285,88080.0,88079.0,6.774e-05]
[1742828104593,0.96226611,88080.0,88079.0,4e-08]
[1742828105287,0.113536,88076.0,88075.0,0.0001703]
[1742828105498,0.47521601,88076.0,88075.0,0.0001703]
[1742828105693,0.96559601,88076.0,88075.0,0.0001703]
[1742828105885,0.96559601,88076.0,88066.0,0.3703]
[1742828105886,0.1135476,88067.0,88066.0,0.3703]
[1742828106189,0.59610761,88067.0,88066.0,0.37098]
[1742828106494,0.70964656,88067.0,88066.0,1e-07]
[1742828106694,0.1135515,88064.0,88063.0,2e-08]
[1742828106885,0.1135721,88048.0,88047.0,0.0004543]
[1742828107193,0.1135927,88032.0,88029.0,0.5346]
[1742828107395,0.8351927,88032.0,88031.0,0.13109438]
[1742828107587,0.8363527,88032.0,88031.0,0.13109438]
[1742828107790,0.84524269,88032.0,88031.0,0.00109438]
[1742828107991,0.95883839,88032.0,88031.0,0.00109438]
[1742828108291,0.9499484,88032.0,88031.0,0.00109438]
[1742828108994,0.96186041,88032.0,88031.0,0.00109438]
[1742828109594,0.96186041,88032.0,88031.0,0.00209438]
[1742828111592,1.01705911,88032.0,88031.0,0.00209438]
[1742828114496,1.02598407,88032.0,88031.0,0.00209438]
[1742828114701,1.20738407,88032.0,88031.0,0.00209438]
[1742828115397,1.02598407,88032.0,88031.0,0.00209438]
[1742828115700,1.01705911,88032.0,88031.0,0.00209438]
[1742828116097,1.18575708,88032.0,88031.0,0.00209438]
[1742828116298,1.54765708,88032.0,88031.0,0.00145438]
[1742828117900,1.18575708,88032.0,88031.0,0.00145438]
[1742828118198,1.18575708,88032.0,88031.0,0.00209438]
[1742828118792,1.18575708,88032.0,88031.0,0.00145438]
[1742828118993,1.54575708,88032.0,88031.0,0.00145438]
[1742828119392,1.32186041,88032.0,88031.0,0.00145438]
[1742828119594,1.32186041,88032.0,88031.0,0.0016]
[1742828119795,0.0568009,88025.0,88015.0,0.00045447]
[1742828119998,0.8352134,88016.0,88015.0,0.00045447]
[1742828120812,1.4291691,88016.0,88015.0,0.00045447]
[1742828122908,1.43810942,88016.0,88015.0,0.00045447]
[1742828123299,1.44010942,88016.0,88015.0,0.00045447]
[1742828125305,1.44010942,88016.0,88015.0,5.277e-05]
[1742828126707,1.61750942,88016.0,88015.0,5.277e-05]
[1742828129509,2.02580942,88016.0,88015.0,5.277e-05]
[1742828130306,2.02580942,88016.0,88015.0,7e-08]
[1742828130910,2.02580942,88016.0,88000.0,0.1]
[1742828130911,0.1136327,88001.0,88000.0,0.1]
[1742828131208,1.0049327,88001.0,88000.0,0.1]
[1742828131407,1.3704327,88001.0,88000.0,0.1]
[1742828131608,1.48404905,88001.0,88000.0,0.1]
[1742828131808,1.49298937,88001.0,88000.0,0.1]
[1742828133308,1.50455483,88001.0,88000.0,0.1]
[1742828133912,1.50655483,88001.0,88000.0,0.1]
[1742828134606,1.38567483,88001.0,88000.0,0.1]
[1742828134799,1.50655483,88001.0,88000.0,0.2776]
[1742828135408,1.50655483,88001.0,88000.0,0.1]
[1742828136311,1.5153714,88001.0,88000.0,0.1]
[1742828137403,1.8761714,88001.0,88000.0,0.1]
[1742828137602,1.8761714,88001.0,87969.0,0.12084]
[1742828137603,0.1136547,87984.0,87969.0,0.12084]
[1742828137812,0.9661597,87984.0,87976.0,0.1775]
[1742828138112,0.9661597,87984.0,87977.0,0.1825]
[1742828138301,0.9661597,87984.0,87983.0,0.00169463]
[1742828138302,1.45372863,87984.0,87983.0,0.00169463]
[1742828138608,1.45372863,87984.0,87983.0,0.00045463]
[1742828139107,1.46519549,87984.0,87983.0,0.00045463]
[1742828139307,1.47405929,87984.0,87983.0,3e-08]
[1742828139506,1.88235929,87984.0,87983.0,3e-08]
[1742828140611,1.88235929,87984.0,87983.0,0.00100003]
[1742828141108,1.88235929,87984.0,87983.0,3e-08]
[1742828141711,1.88230007,87984.0,87983.0,3e-08]
[1742828142409,1.76146007,87984.0,87983.0,3e-08]
[1742828142608,1.40066007,87984.0,87983.0,3e-08]
[1742828142815,0.1136728,87972.0,87969.0,0.3699]
[1742828143004,0.1136702,87973.0,87972.0,0.113667]
[1742828143327,0.1136702,87973.0,87972.0,0.4376345]
[1742828143328,0.1136689,87973.0,87972.0,0.4376345]
[1742828143517,0.12396922,87973.0,87972.0,0.4376345]
[1742828143700,0.12396922,87973.0,87972.0,0.3808]
[1742828145815,0.2376411,87973.0,87972.0,0.3808]
[1742828146010,0.6052411,87973.0,87972.0,0.3808]
[1742828146618,0.00017051,87979.0,87972.0,0.7984345]
[1742828146810,0.0568248,87988.0,87972.0,0.7984345]
[1742828146811,0.1136524,87986.0,87973.0,0.12084]
[1742828147005,0.1136535,87985.0,87983.0,0.3608]
[1742828147202,0.11425351,87985.0,87984.0,0.181]
[1742828147514,0.0568252,87988.0,87984.0,0.19164]
[1742828147715,0.00060001,87988.0,87987.0,0.1136508]
[1742828147909,0.3608,87993.0,87987.0,0.01259071]
[1742828148108,0.1136495,87988.0,87987.0,0.00076]
[1742828148414,0.11484951,87988.0,87987.0,0.00076]
[1742828148607,0.16869797,87990.0,87987.0,0.00076]
[1742828148810,0.4176218,87993.0,87987.0,0.01076]
[1742828149011,0.004,87988.0,87987.0,0.1244107]
[1742828149208,0.1136525,87990.0,87987.0,0.1244107]
[1742828149518,0.1136463,87991.0,87989.0,0.1136474]
[1742828149719,0.1136463,87991.0,87989.0,0.01164]
[1742828149909,0.3608,87993.0,87991.0,0.113645]
[1742828150109,0.3608,87993.0,87992.0,0.1136444]
[1742828150309,0.3608,87993.0,87992.0,0.18504]
[1742828150612,0.4744431,87993.0,87992.0,0.18504]
[1742828152111,0.4754431,87993.0,87992.0,0.18504]
[1742828152516,0.3618,87993.0,87992.0,0.2986844]
[1742828152915,0.4744431,87993.0,87992.0,0.18504]
[1742828153218,0.4754431,87993.0,87992.0,0.18504]
[1742828154116,0.58908914,87993.0,87992.0,0.18504]
[1742828155917,0.58808914,87993.0,87992.0,0.18504]
[1742828156112,0.58908914,87993.0,87992.0,0.18504]
[1742828158111,0.94938914,87993.0,87992.0,0.18504]
[1742828158325,0.95138914,87993.0,87992.0,0.18504]
[1742828160223,0.65897777,87993.0,87992.0,0.2986844]
[1742828160515,0.65897483,87993.0,87992.0,0.18504]
[1742828160820,0.77262087,87993.0,87992.0,0.18504]
[1742828161311,0.95512087,87993.0,87992.0,0.18504]
[1742828161518,0.96494551,87993.0,87992.0,0.18504]
[1742828161904,0.96494551,87993.0,87992.0,0.2986844]
[1742828161905,0.55315637,87993.0,87992.0,0.2986844]
[1742828162313,0.66579941,87993.0,87992.0,0.18504]
[1742828162521,0.66779941,87993.0,87992.0,0.18504]
[1742828164221,0.65897483,87993.0,87992.0,0.18504]
[1742828164420,0.78151007,87993.0,87992.0,0.18504]
[1742828164720,0.01147263,87997.0,87992.0,0.18504]
[1742828164721,0.20312593,88008.0,88002.0,0.0568157]
[1742828164906,0.20312593,88008.0,88003.0,0.47476]
[1742828164907,0.25993783,88008.0,88003.0,0.47476]
[1742828165112,0.20312593,88008.0,88007.0,0.113625]
[1742828165319,0.20312593,88008.0,88007.0,0.115185]
[1742828165831,0.20312593,88008.0,88007.0,0.296585]
[1742828166012,0.20512593,88008.0,88007.0,0.296585]
[1742828166512,0.20312593,88008.0,88007.0,0.296585]
[1742828166713,0.20612593,88008.0,88007.0,0.416585]
[1742828167123,0.21112593,88008.0,88007.0,0.416585]
[1742828167922,0.21112593,88008.0,88007.0,0.42825957]
[1742828168124,0.21112593,88008.0,88007.0,0.54691251]
[1742828169013,0.1718,88013.0,88012.0,0.1136185]
[1742828169219,0.1718,88013.0,88012.0,0.3959785]
[1742828169621,0.1718,88013.0,88012.0,0.4059785]
[1742828169816,0.1718,88013.0,88012.0,0.29236]
[1742828170015,0.1718,88013.0,88012.0,0.4059785]
[1742828170216,0.1768,88013.0,88012.0,0.4069785]